bitfinex/quotes_SOLUSD_20240718
["timestamp","ask_amount","ask_price","bid_price","bid_amount"]
[1721283954822,12.11,159.5,159.45,12.11]
[1721283955026,12.11,159.5,159.49,6.2699]
[1721283955539,12.11,159.51,159.49,6.2699]
[1721283955833,12.11,159.51,159.5,6.2695]
[1721283956032,1.50547565,159.53,159.5,6.2695]
[1721283956033,12.11,159.52,159.5,6.2695]
[1721283956202,12.11,159.52,159.51,6.2691]
[1721283956817,12.11,159.52,159.5,6.2695]
[1721283958929,12.11,159.51,159.5,6.2695]
[1721283959510,12.11,159.51,159.49,21.9448]
[1721283959837,13.61547565,159.5,159.47,6.2707]
[1721283960043,12.11,159.5,159.48,6.2702]
[1721283961723,12.11,159.5,159.49,6.2699]
[1721283963015,12.11,159.51,159.49,6.2699]
[1721283964614,12.11,159.51,159.5,6.2695]
[1721283964939,12.11,159.52,159.51,6.2691]
[1721283965622,12.11,159.52,159.5,6.2695]
[1721283966037,15.7996,159.57,159.48,1.2539346]
[1721283966238,1.50547565,159.56,159.55,15.6688]
[1721283966441,12.11,159.56,159.55,15.6688]
[1721283966616,1.50547565,159.59,159.55,21.9363]
[1721283966617,12.11,159.57,159.55,21.9363]
[1721283966945,1.50547565,159.56,159.55,15.6688]
[1721283967126,1.50547565,159.56,159.5,31.3465]
[1721283967127,13.61547565,159.56,159.53,6.2683]
[1721283967437,12.11,159.55,159.52,6.2687]
[1721283967624,1.50547565,159.54,159.52,6.2687]
[1721283967827,12.11,159.55,159.52,6.2687]
[1721283968036,1.50547565,159.54,159.52,6.2687]
[1721283968340,1.50547565,159.57,159.53,6.2684]
[1721283969130,1.50547565,159.57,159.54,6.2678]
[1721283970163,1.50547565,159.57,159.55,6.2675]
[1721283970858,1.50547565,159.57,159.54,6.2679]
[1721283973362,46.67547565,159.58,159.53,16.92356403]
[1721283973580,12.11,159.57,159.53,16.92356403]
[1721283974360,12.11,159.57,159.54,6.2677]
[1721283974556,13.61547565,159.57,159.54,6.2677]
[1721283974951,12.11,159.57,159.54,6.2677]
[1721283975767,12.11,159.57,159.55,6.2674]
[1721283976160,13.61547565,159.57,159.55,6.2674]
[1721283976661,12.11,159.57,159.55,6.2674]
[1721283977353,1.50547565,159.63,159.59,6.2658]
[1721283977746,12.11,159.6,159.59,6.2658]
[1721283977948,12.11,159.6,159.52,6.3708]
[1721283977949,12.11,159.6,159.58,15.6657]
[1721283978168,13.61547565,159.59,159.58,15.6657]
[1721283978466,12.11,159.59,159.56,6.2671]
[1721283978647,12.11,159.59,159.57,6.2667]
[1721283979151,12.11,159.6,159.58,6.2664]
[1721283980459,1.50547565,159.59,159.57,6.2667]
[1721283980658,12.11,159.59,159.57,6.2667]
[1721283983667,12.11,159.6,159.58,6.2664]
[1721283985046,12.11,159.6,159.59,6.266]
[1721283985463,12.11,159.61,159.59,6.266]
[1721283986275,1.50547565,159.63,159.59,6.266]
[1721283986276,12.11,159.62,159.61,6.2652]
[1721283986763,12.11,159.62,159.6,6.2655]
[1721283987966,13.61547565,159.61,159.58,6.266]
[1721283988275,13.61547565,159.6,159.58,6.266]
[1721283988482,12.11,159.6,159.58,6.266]
[1721283988978,12.11,159.6,159.57,6.2667]
[1721283989575,12.11,159.59,159.57,6.2667]
[1721283990251,12.11,159.6,159.57,6.2667]
[1721283990762,12.11,159.6,159.58,6.2663]
[1721283992365,12.11,159.6,159.59,6.266]
[1721283992552,12.11,159.61,159.6,6.2656]
[1721283993175,12.11,159.61,159.58,15.6652]
[1721283993363,12.11,159.61,159.59,6.2659]
[1721283993973,1.50547565,159.64,159.59,6.2659]
[1721283994176,12.11,159.61,159.59,6.2659]
[1721283998961,12.11,159.6,159.59,6.2659]
[1721283999854,12.11,159.61,159.59,6.2659]
[1721284001986,12.11,159.6,159.58,15.6652]
[1721284002287,1.50547565,159.59,159.55,15.6689]
[1721284002460,12.11,159.56,159.55,21.9364]
[1721284003351,12.11,159.56,159.55,15.6689]
[1721284004870,12.11,159.57,159.55,21.9365]
[1721284006281,12.11,159.58,159.56,6.2672]
[1721284007402,12.11,159.59,159.57,6.2668]
[1721284007579,12.11,159.61,159.58,23.18528584]
[1721284007781,12.11,159.61,159.58,16.91928584]
[1721284008175,12.11,159.61,159.59,6.266]
[1721284008373,12.11,159.62,159.59,6.266]
[1721284008571,12.11,159.61,159.59,6.266]
[1721284009978,12.11,159.6,159.59,6.266]
[1721284010683,12.11,159.6,159.58,15.6661]
[1721284011196,12.11,159.6,159.58,21.9325]
[1721284011774,7.76957565,159.64,159.58,21.9325]
[1721284012076,12.11,159.61,159.58,21.9325]
[1721284013293,15.3599,159.65,159.55,15.6688]
[1721284013294,12.11,159.59,159.55,15.6688]
[1721284013474,12.11,159.59,159.56,6.2671]
[1721284015306,12.11,159.59,159.55,15.6688]
[1721284015307,12.11,159.57,159.55,21.9364]
[1721284017205,13.61547565,159.56,159.52,15.6718]
[1721284017374,12.11,159.54,159.52,15.6718]
[1721284019099,12.11,159.54,159.53,6.2683]
[1721284021999,12.11,159.55,159.54,6.268]
[1721284022380,12.11,159.55,159.53,6.2683]
[1721284023386,13.61547565,159.58,159.54,15.6692]
[1721284023587,12.11,159.58,159.55,1.25338172]
[1721284024008,12.11,159.59,159.56,6.2672]
[1721284025283,12.11,159.6,159.57,16.66835782]
[1721284025494,12.11,159.61,159.57,16.66835782]
[1721284025996,12.11,159.6,159.57,16.66835782]
[1721284026178,12.11,159.6,159.57,15.667]
[1721284026907,12.11,159.6,159.57,21.9338]
[1721284027810,12.11,159.6,159.58,6.2664]
[1721284030593,12.11,159.6,159.57,15.667]
[1721284030909,12.11,159.6,159.57,21.9337]
[1721284036425,1.50547565,159.62,159.57,15.667]
[1721284036426,13.61547565,159.59,159.57,15.667]
[1721284036603,12.11,159.59,159.57,15.667]
[1721284038219,13.61547565,159.58,159.49,6.619]
[1721284038520,12.11,159.55,159.5,12.11]
[1721284038688,12.11,159.55,159.49,18.729]
[1721284038894,12.11,159.55,159.53,6.2683]
[1721284039217,12.11,159.54,159.52,6.2687]
[1721284040917,12.11,159.55,159.53,6.2684]
[1721284041903,12.11,159.56,159.54,6.268]
[1721284042296,12.11,159.57,159.54,6.268]
[1721284043100,1.50547565,159.59,159.55,6.2676]
[1721284043306,12.11,159.58,159.56,6.2671]
[1721284045097,12.11,159.59,159.56,6.2671]
[1721284049421,12.11,159.59,159.57,6.2668]
[1721284049803,12.11,159.6,159.57,6.2668]
[1721284050005,12.11,159.6,159.58,7.51925607]
[1721284050419,12.11,159.6,159.58,6.2661]
[1721284056239,12.11,159.6,159.56,21.9342]
[1721284061728,12.11,159.6,159.57,7.51985733]
[1721284061930,12.11,159.61,159.57,6.2667]
[1721284062519,12.11,159.6,159.57,6.2667]
[1721284064541,12.11,159.6,159.56,21.9344]
[1721284065546,12.11,159.59,159.53,15.475]
[1721284065837,12.11,159.59,159.55,6.2674]
[1721284066418,12.11,159.56,159.53,15.475]
[1721284066636,12.11,159.55,159.51,15.6728]
[1721284066945,12.11,159.54,159.51,21.9416]
[1721284067446,12.11,159.54,159.51,15.6728]
[1721284067835,12.11,159.54,159.51,21.9419]
[1721284069745,12.11,159.54,159.52,6.2687]
[1721284070939,12.11,159.55,159.52,6.2687]
[1721284072046,12.11,159.55,159.53,6.2684]
[1721284072347,12.11,159.56,159.53,6.2684]
[1721284072757,1.50547565,159.59,159.54,1.25346053]
[1721284073052,15.6615,159.62,159.55,1.25337023]
[1721284073053,1.50547565,159.61,159.55,1.25337023]
[1721284073215,12.11,159.58,159.55,1.25337023]
[1721284073420,12.11,159.58,159.53,21.9381]
[1721284074053,12.11,159.57,159.53,21.9381]
[1721284074420,12.11,159.58,159.54,7.52115501]
[1721284074649,12.11,159.58,159.55,1.25333766]
[1721284074947,12.11,159.58,159.55,7.52083766]
[1721284075139,12.11,159.58,159.55,6.2675]
[1721284075621,12.11,159.58,159.53,34.0481]
[1721284075941,12.11,159.58,159.53,21.9381]
[1721284076443,12.11,159.57,159.53,21.9381]
[1721284076753,12.11,159.59,159.54,13.36324842]
[1721284076944,12.11,159.59,159.55,1.25316628]
[1721284077328,12.11,159.59,159.54,12.11]
[1721284077526,12.11,159.59,159.55,6.2675]
[1721284079748,12.11,159.57,159.54,6.268]
[1721284080055,12.11,159.57,159.53,15.6701]
[1721284080056,12.11,159.56,159.53,15.6701]
[1721284081054,12.11,159.56,159.53,21.9384]
[1721284081627,12.11,159.56,159.51,6.2691]
[1721284081628,12.11,159.54,159.51,6.2691]
[1721284081827,12.11,159.53,159.51,6.2691]
[1721284083029,12.11,159.54,159.52,6.2687]
[1721284083235,12.11,159.55,159.52,6.2687]
[1721284084655,12.11,159.55,159.53,6.2682]
[1721284086730,12.11,159.56,159.53,6.2682]
[1721284087329,12.11,159.55,159.53,6.2682]
[1721284087950,12.11,159.56,159.53,6.2682]
[1721284088156,12.11,159.55,159.53,6.2682]
[1721284088541,12.11,159.54,159.51,6.2689]
[1721284089728,12.11,159.54,159.52,6.2687]
[1721284093135,1.50547565,159.53,159.5,21.9431]
[1721284093342,12.11,159.51,159.5,15.6739]
[1721284095649,12.11,159.51,159.5,21.9434]
[1721284098259,12.11,159.51,159.46,15.6769]
[1721284098459,12.11,159.47,159.41,12.11]
[1721284098638,1.50547565,159.5,159.41,12.11]
[1721284098639,12.11,159.46,159.41,12.11]
[1721284099045,12.11,159.46,159.4,33.6875]
[1721284099246,12.11,159.45,159.44,6.2718]
[1721284101470,12.11,159.46,159.45,6.2715]
[1721284102345,1.50547565,159.5,159.45,6.2715]
[1721284102558,12.11,159.47,159.45,6.2715]
[1721284102863,12.11,159.48,159.46,6.2711]
[1721284103045,1.50547565,159.5,159.47,6.2707]
[1721284103238,12.11,159.5,159.47,6.2707]
[1721284104460,1.50547565,159.52,159.48,7.52431994]
[1721284104667,12.11,159.51,159.48,6.2703]
[1721284106069,12.11,159.51,159.47,7.52460594]
[1721284106573,12.11,159.49,159.45,21.9491]
[1721284106950,12.11,159.5,159.46,1.25402853]
[1721284107163,12.11,159.5,159.47,6.2706]
[1721284107471,12.11,159.5,159.46,7.52502853]
[1721284107848,12.11,159.51,159.47,6.2707]
[1721284108373,12.11,159.51,159.48,1.25396172]
[1721284109376,6.2684,159.53,159.48,1.25396172]
[1721284109558,12.11,159.51,159.48,1.25396172]
[1721284110064,12.11,159.51,159.47,6.2707]
[1721284110472,12.11,159.5,159.47,6.2707]
[1721284111268,12.11,159.5,159.45,21.9491]
[1721284111466,12.11,159.49,159.45,21.9491]
[1721284111647,12.11,159.5,159.46,7.5251267]
[1721284112266,12.11,159.5,159.46,6.2711]
[1721284112470,12.11,159.5,159.47,7.52453779]
[1721284112771,12.11,159.51,159.48,6.2703]
[1721284113075,12.11,159.51,159.49,1.25385832]
[1721284115456,12.11,159.52,159.49,1.25385832]
[1721284115867,1.50547565,159.56,159.49,1.25385832]
[1721284116055,1.50547565,159.56,159.5,12.11]
[1721284116056,12.11,159.55,159.5,12.11]
[1721284116258,12.11,159.55,159.51,1.25363594]
[1721284116574,12.11,159.55,159.52,1.25363594]
[1721284116780,12.11,159.54,159.52,1.25363594]
[1721284117368,12.11,159.55,159.52,1.25363594]
[1721284117573,12.11,159.55,159.51,1.25361601]
[1721284117760,12.11,159.55,159.52,1.25361691]
[1721284118081,18.3777,159.55,159.52,1.25361691]
[1721284118472,12.11,159.54,159.52,1.25361691]
[1721284118656,12.11,159.54,159.5,6.2695]
[1721284119559,12.11,159.54,159.51,1.25362934]
[1721284119758,12.11,159.54,159.49,6.2699]
[1721284119759,12.11,159.54,159.52,1.25362829]
[1721284119966,12.11,159.54,159.5,1.25362838]
[1721284120454,12.11,159.54,159.49,18.3799]
[1721284120657,12.11,159.54,159.5,1.25362974]
[1721284120968,12.11,159.54,159.49,18.3799]
[1721284121175,12.11,159.54,159.5,1.00282195]
[1721284121562,6.2672,159.56,159.5,16.67662195]
[1721284121752,12.11,159.55,159.51,7.5226436]
[1721284121955,12.11,159.55,159.52,1.25353792]
[1721284124675,18.3772,159.56,159.52,1.25353792]
[1721284126872,18.3772,159.56,159.51,18.3791]
[1721284127187,12.11,159.55,159.51,6.2691]
[1721284128080,18.3776,159.55,159.5,15.6738]
[1721284128294,12.11,159.55,159.5,21.943]
[1721284128460,12.11,159.55,159.51,6.269]
[1721284130687,12.11,159.55,159.52,6.2687]
[1721284132274,12.11,159.56,159.52,6.2687]
[1721284132988,12.11,159.55,159.51,6.2691]
[1721284133188,12.11,159.54,159.51,6.2691]
[1721284134299,12.11,159.54,159.52,6.2686]
[1721284134960,1.50547565,159.56,159.52,6.2686]
[1721284135162,12.11,159.55,159.52,6.2686]
[1721284136387,1.50547565,159.57,159.52,6.2686]
[1721284136589,12.11,159.56,159.53,6.2683]
[1721284137291,1.50547565,159.57,159.53,6.2683]
[1721284137481,12.11,159.56,159.53,6.2683]
[1721284137792,12.11,159.56,159.53,7.27010943]
[1721284139090,12.11,159.56,159.53,6.2683]
[1721284140297,1.50547565,159.57,159.53,6.2683]
[1721284140593,12.11,159.56,159.53,6.2683]
[1721284141665,12.11,159.56,159.52,21.9399]
[1721284142477,7.77147565,159.59,159.53,6.2682]
[1721284142680,12.11,159.57,159.53,6.2682]
[1721284142897,7.77147565,159.59,159.53,6.2682]
[1721284143104,12.11,159.57,159.53,6.2682]
[1721284143472,7.77147565,159.59,159.54,1.25340413]
[1721284143673,12.11,159.58,159.55,1.25338796]
[1721284143871,12.11,159.58,159.54,1.25338853]
[1721284144073,12.11,159.58,159.55,1.2533904]
[1721284144804,12.11,159.58,159.53,18.3782]
[1721284145172,18.3764,159.58,159.53,18.3782]
[1721284146198,12.11,159.58,159.53,18.3782]
[1721284146398,13.61547565,159.58,159.53,18.3782]
[1721284147293,12.11,159.58,159.53,18.3782]
[1721284147477,12.11,159.58,159.54,1.25336408]
[1721284147678,12.11,159.58,159.55,1.25336408]
[1721284147871,12.11,159.58,159.53,18.3782]
[1721284149979,12.11,159.57,159.53,6.2682]
[1721284150889,1.50547565,159.57,159.5,22.406]
[1721284151086,18.378,159.54,159.5,16.1368]
[1721284151402,12.11,159.54,159.49,6.2698]
[1721284151575,13.61547565,159.54,159.49,6.2698]
[1721284151780,12.11,159.53,159.49,6.2698]
[1721284153785,13.61547565,159.52,159.49,6.2698]
[1721284153972,12.11,159.51,159.48,21.9454]
[1721284154880,12.11,159.51,159.48,22.94877519]
[1721284155078,12.11,159.51,159.49,1.25386376]
[1721284155302,1.50547565,159.53,159.49,1.25386376]
[1721284155303,12.11,159.52,159.49,1.25386376]
[1721284155477,12.11,159.52,159.48,21.9454]
[1721284155677,12.11,159.52,159.49,1.25386337]
[1721284156098,12.11,159.53,159.49,1.25386337]
[1721284156290,12.11,159.53,159.48,27.7851]
[1721284156478,12.11,159.53,159.5,6.2692]
[1721284157805,12.11,159.54,159.5,6.2692]
[1721284159800,13.61547565,159.54,159.5,6.2692]
[1721284160101,13.61547565,159.54,159.49,13.36374667]
[1721284160102,13.61547565,159.54,159.49,19.63364667]
[1721284160308,13.61547565,159.54,159.49,7.52364667]
[1721284160603,12.11,159.53,159.49,1.25374667]
[1721284160793,12.11,159.52,159.48,15.6751]
[1721284161106,12.11,159.52,159.48,21.9453]
[1721284161508,12.11,159.51,159.48,21.9453]
[1721284161808,12.11,159.52,159.49,1.25386234]
[1721284163491,13.61547565,159.52,159.49,1.25386234]
[1721284163709,13.61547565,159.52,159.48,21.9453]
[1721284164278,12.11,159.52,159.49,1.0027339]
[1721284164986,12.11,159.52,159.49,7.2725339]
[1721284165190,6.268,159.54,159.49,7.2725339]
[1721284165191,12.11,159.53,159.49,7.2725339]
[1721284165592,12.11,159.52,159.49,6.2698]
[1721284165787,12.11,159.52,159.48,21.9454]
[1721284166012,12.11,159.51,159.48,21.9454]
[1721284166694,12.11,159.51,159.49,1.25384246]
[1721284167012,12.11,159.52,159.49,1.25384246]
[1721284167612,12.11,159.52,159.49,1.25382683]
[1721284167817,12.11,159.52,159.49,7.52362683]
[1721284171308,12.11,159.52,159.49,6.2698]
[1721284174509,12.11,159.51,159.48,15.6751]
[1721284174691,13.61547565,159.5,159.46,22.395]
[1721284175018,12.11,159.49,159.46,22.395]
[1721284176312,12.11,159.5,159.46,22.395]
[1721284177316,12.11,159.5,159.46,23.64901188]
[1721284178017,6.2683,159.54,159.46,17.37801188]
[1721284178222,12.11,159.51,159.48,6.27]
[1721284179099,12.11,159.52,159.48,6.27]
[1721284179611,12.11,159.51,159.48,6.27]
[1721284181103,12.11,159.5,159.47,15.6761]
[1721284181423,18.3799,159.5,159.46,16.124]
[1721284181723,12.11,159.49,159.46,22.3949]
[1721284181924,1.50547565,159.54,159.46,16.124]
[1721284181925,12.11,159.5,159.46,16.124]
[1721284182121,12.11,159.51,159.48,6.2703]
[1721284182796,12.11,159.51,159.47,15.676]
[1721284182996,13.61547565,159.51,159.47,15.676]
[1721284183203,12.11,159.5,159.47,21.9467]
[1721284183415,1.50547565,159.51,159.47,21.9467]
[1721284183622,12.11,159.5,159.47,21.9467]
[1721284187621,12.11,159.51,159.47,21.9467]
[1721284188221,13.61547565,159.5,159.47,21.9467]
[1721284188411,12.11,159.5,159.47,21.9467]
[1721284191323,12.11,159.5,159.47,15.676]
[1721284192529,12.11,159.5,159.47,21.9467]
[1721284200420,12.11,159.5,159.48,6.2702]
[1721284201321,12.11,159.5,159.47,21.9466]
[1721284202334,12.11,159.5,159.48,6.2703]
[1721284205033,0.17,159.56,159.49,16.92793683]
[1721284205034,1.50547565,159.56,159.49,16.92793683]
[1721284205333,1.50547565,159.56,159.5,6.2692]
[1721284205334,12.11,159.54,159.5,6.2692]
[1721284206111,12.11,159.54,159.51,7.52283265]
[1721284206334,7.77267565,159.56,159.51,7.52283265]
[1721284206529,12.11,159.55,159.51,7.52283265]
[1721284207310,12.11,159.55,159.51,6.2691]
[1721284208225,1.50547565,159.57,159.52,1.25363079]
[1721284208412,12.11,159.57,159.52,12.11]
[1721284209111,12.11,159.57,159.53,6.2683]
[1721284209527,13.61547565,159.57,159.53,6.2683]
[1721284210239,12.11,159.57,159.53,6.2683]
[1721284210424,12.11,159.57,159.54,1.25340764]
[1721284210626,12.11,159.57,159.53,6.2683]
[1721284211811,1.50547565,159.58,159.56,6.2672]
[1721284212014,1.50547565,159.6,159.55,23.18974879]
[1721284212216,12.11,159.59,159.56,7.52027371]
[1721284212436,12.11,159.59,159.56,6.267]
[1721284216036,12.11,159.59,159.57,7.26853154]
[1721284216243,12.11,159.6,159.57,7.26853154]
[1721284217140,12.11,159.6,159.57,6.2667]
[1721284218625,12.11,159.59,159.56,6.2671]
[1721284219748,12.11,159.58,159.56,6.2671]
[1721284219937,12.11,159.58,159.52,15.4922]
[1721284219938,13.61547565,159.57,159.52,15.4922]
[1721284220248,12.11,159.53,159.5,6.2695]
[1721284220816,12.11,159.52,159.49,6.2698]
[1721284221919,12.11,159.52,159.48,15.6758]
[1721284222137,12.11,159.49,159.45,15.6788]
[1721284222344,12.11,159.49,159.44,6.2718]
[1721284222345,12.11,159.48,159.44,6.2718]
[1721284222553,12.11,159.47,159.44,6.2718]
[1721284222732,12.11,159.47,159.45,6.2715]
[1721284223814,12.11,159.46,159.43,21.575]
[1721284224231,12.11,159.47,159.44,6.2718]
[1721284224444,12.11,159.45,159.42,21.9542]
[1721284224813,13.61547565,159.46,159.42,21.9542]
[1721284225020,12.11,159.46,159.42,21.9542]
[1721284225219,12.11,159.45,159.42,21.9542]
[1721284226032,12.11,159.45,159.43,6.2723]
[1721284226239,12.11,159.46,159.43,6.2723]
[1721284226440,1.50547565,159.49,159.42,15.6818]
[1721284226645,12.11,159.47,159.42,15.6818]
[1721284227449,12.11,159.46,159.44,6.2719]
[1721284228250,12.11,159.47,159.44,6.2719]
[1721284228833,12.11,159.46,159.43,6.2723]
[1721284229153,13.61547565,159.46,159.42,21.9544]
[1721284229327,12.11,159.45,159.42,21.9544]
[1721284230130,12.11,159.45,159.42,15.6818]
[1721284230345,12.11,159.44,159.42,15.6818]
[1721284231242,12.11,159.44,159.41,6.273]
[1721284232358,12.11,159.45,159.42,7.52714925]
[1721284232654,12.11,159.45,159.42,6.2727]
[1721284233240,0.17,159.46,159.41,21.9556]
[1721284233241,13.61547565,159.44,159.41,21.9556]
[1721284233429,12.11,159.44,159.41,21.9556]
[1721284234661,0.17,159.46,159.42,6.2725]
[1721284234852,12.11,159.46,159.42,7.52685142]
[1721284237457,12.11,159.46,159.42,6.2725]
[1721284237754,12.11,159.45,159.42,6.2725]
[1721284238856,12.11,159.46,159.43,7.52667334]
[1721284239963,1.67547565,159.47,159.44,1.25427731]
[1721284239964,12.28,159.47,159.44,1.25427731]
[1721284240258,12.28,159.47,159.43,7.52653658]
[1721284240933,12.28,159.47,159.43,1.25423658]
[1721284241134,12.28,159.47,159.42,18.3825]
[1721284241332,12.11,159.46,159.42,6.2725]
[1721284242866,12.11,159.45,159.42,6.2725]
[1721284244665,12.11,159.45,159.43,6.2723]
[1721284245170,12.11,159.46,159.43,6.2723]
[1721284245669,0.17,159.47,159.43,6.2723]
[1721284245670,13.78547565,159.47,159.43,6.2723]
[1721284246167,12.11,159.46,159.43,6.2723]
[1721284248550,12.11,159.46,159.41,34.0652]
[1721284248747,6.2722,159.44,159.39,15.4451]
[1721284248951,12.11,159.42,159.39,15.4451]
[1721284249456,12.11,159.43,159.39,21.7188]
[1721284250175,12.11,159.42,159.39,21.7188]
[1721284252658,12.11,159.43,159.39,21.7188]
[1721284254879,12.11,159.43,159.4,1.25450364]
[1721284255051,12.11,159.43,159.39,21.7188]
[1721284255253,12.11,159.43,159.4,6.2734]
[1721284255462,12.11,159.43,159.41,6.2731]
[1721284255774,12.11,159.43,159.4,6.2734]
[1721284256160,12.11,159.43,159.41,6.273]
[1721284256482,12.28,159.45,159.41,6.273]
[1721284256854,1.50547565,159.46,159.42,7.52695556]
[1721284256855,12.11,159.46,159.42,7.52695556]
[1721284257060,12.11,159.46,159.43,1.25426702]
[1721284257487,6.27,159.49,159.43,1.25426702]
[1721284257663,12.11,159.47,159.43,1.25426702]
[1721284257863,12.11,159.48,159.43,13.36426702]
[1721284258076,6.27,159.49,159.43,13.36426702]
[1721284258260,12.11,159.48,159.43,13.36426702]
[1721284258772,19.88587565,159.48,159.43,12.11]
[1721284259091,12.11,159.47,159.43,6.2723]
[1721284259770,12.11,159.46,159.42,6.2727]
[1721284259974,12.11,159.45,159.42,6.2727]
[1721284260287,1.50547565,159.46,159.41,27.7921]
[1721284260288,12.11,159.46,159.41,27.7921]
[1721284260459,12.11,159.46,159.43,1.25430746]
[1721284261063,12.11,159.45,159.41,15.6821]
[1721284261272,12.11,159.44,159.41,15.6821]
[1721284261484,12.11,159.45,159.41,21.9551]
[1721284262669,12.11,159.45,159.42,6.2725]
[1721284262989,12.11,159.45,159.41,15.6821]
[1721284262990,6.2703,159.49,159.43,13.36431721]
[1721284263285,21.7158,159.52,159.42,18.3823]
[1721284263286,12.11,159.47,159.42,18.3823]
[1721284263486,12.11,159.46,159.42,6.2723]
[1721284263683,12.11,159.46,159.43,6.2722]
[1721284263867,12.11,159.47,159.44,7.52601531]
[1721284264482,12.11,159.49,159.45,6.2715]
[1721284264669,12.11,159.49,159.46,1.25403039]
[1721284264874,12.11,159.5,159.45,18.3815]
[1721284265178,1.50547565,159.51,159.46,1.25401431]
[1721284265355,1.50547565,159.51,159.47,6.2707]
[1721284265561,7.77427565,159.52,159.47,6.2707]
[1721284265861,12.11,159.49,159.45,21.9494]
[1721284266480,1.50547565,159.52,159.46,1.25399529]
[1721284266680,7.77337565,159.55,159.49,6.2699]
[1721284266883,12.11,159.52,159.49,6.2699]
[1721284267271,12.11,159.53,159.5,1.25381622]
[1721284268194,12.11,159.52,159.48,6.2703]
[1721284269576,12.11,159.5,159.47,15.676]
[1721284269765,12.11,159.49,159.45,21.4585]
[1721284270085,13.61547565,159.5,159.46,6.2711]
[1721284270294,12.11,159.49,159.46,6.2711]
[1721284270665,12.11,159.47,159.43,21.8882]
[1721284271190,12.11,159.47,159.44,6.2717]
[1721284271395,0.17,159.48,159.45,6.2714]
[1721284271684,12.11,159.48,159.45,6.2714]
[1721284271885,1.50547565,159.49,159.45,6.2714]
[1721284272091,12.11,159.47,159.45,6.2714]
[1721284272591,13.61547565,159.49,159.45,6.2714]
[1721284272760,12.11,159.48,159.45,6.2714]
[1721284272963,12.11,159.47,159.43,28.1601]
[1721284273376,12.11,159.47,159.43,21.9517]
[1721284273774,12.11,159.45,159.42,6.2726]
[1721284273987,12.11,159.45,159.41,21.6161]
[1721284275487,1.50547565,159.44,159.41,6.273]
[1721284275682,12.11,159.43,159.41,6.273]
[1721284275993,13.61547565,159.42,159.37,15.6416]
[1721284276210,12.11,159.39,159.36,15.687]
[1721284276694,12.11,159.37,159.35,6.2751]
[1721284276891,12.11,159.38,159.34,6.2758]
[1721284277097,12.11,159.37,159.34,6.2758]
[1721284278183,12.11,159.37,159.35,6.2753]
[1721284278491,12.11,159.38,159.35,6.2753]
[1721284278688,1.67547565,159.39,159.34,12.11]
[1721284278689,13.78547565,159.39,159.34,12.11]
[1721284278888,0.17,159.39,159.35,13.36484087]
[1721284279069,13.78547565,159.39,159.35,6.2751]
[1721284279274,12.11,159.38,159.36,6.275]
[1721284279999,12.11,159.38,159.35,6.2754]
[1721284281982,1.50547565,159.41,159.35,15.6878]